[Event "Titled Tuesday Blitz January 03 Late 2023"]
[White "Sreyas Payyappat"]
[Black "Martynov, Pavel"]
[WhiteFideId "46674969"]
[BlackFideId "4101260"]
[WhiteElo "2076"]
[BlackElo "2414"]
[Result "0-1"]
[Round "06"]
[TimeControl "180+2"]
[Date "2023.01.03"]
[WhiteClock "0:00:10"]
[BlackClock "0:00:05"]

1. e4 {[%clk 0:02:57]}  c5 {[%clk 0:02:59]} 2. Nf3 {[%clk 0:02:55]}  e6 {[%clk 0:03:00]} 3. d4 {[%clk 0:02:55]}  cxd4 {[%clk 0:03:00]} 4. Nxd4 {[%clk 0:02:55]}  Nc6 {[%clk 0:03:01]} 5. Nb5 {[%clk 0:02:53]}  d6 {[%clk 0:03:00]} 6. c4 {[%clk 0:02:48]}  a6 {[%clk 0:03:01]} 7. N5a3 {[%clk 0:02:47]}  Nf6 {[%clk 0:02:59]} 8. Nc3 {[%clk 0:02:48]}  Qc7 {[%clk 0:02:59]} 9. g3 {[%clk 0:02:46]}  b6 {[%clk 0:02:55]} 10. Bg2 {[%clk 0:02:46]}  Bb7 {[%clk 0:02:55]} 11. O-O {[%clk 0:02:46]}  h5 {[%clk 0:02:55]} 12. Nc2 {[%clk 0:02:46]}  Ne5 {[%clk 0:02:55]} 13. b3 {[%clk 0:02:43]}  h4 {[%clk 0:02:55]} 14. Ne3 {[%clk 0:02:41]}  Be7 {[%clk 0:02:45]} 15. f4 {[%clk 0:02:39]}  Ned7 {[%clk 0:02:40]} 16. Ba3 {[%clk 0:02:37]}  Rd8 {[%clk 0:02:35]} 17. Rc1 {[%clk 0:02:36]}  Nc5 {[%clk 0:02:31]} 18. Qc2 {[%clk 0:02:33]}  hxg3 {[%clk 0:02:20]} 19. hxg3 {[%clk 0:02:32]}  Nh5 {[%clk 0:02:18]} 20. b4 {[%clk 0:02:29]}  Nd7 {[%clk 0:02:11]} 21. Qf2 {[%clk 0:02:29]}  Qb8 {[%clk 0:01:55]} 22. Ne2 {[%clk 0:02:25]}  Nhf6 {[%clk 0:01:48]} 23. Nc3 {[%clk 0:02:21]}  Qa8 {[%clk 0:01:49]} 24. Rfe1 {[%clk 0:02:05]}  Nxe4 {[%clk 0:01:44]} 25. Nxe4 {[%clk 0:02:05]}  Bxe4 {[%clk 0:01:44]} 26. Bxe4 {[%clk 0:01:58]}  Qxe4 {[%clk 0:01:43]} 27. Ng2 {[%clk 0:01:58]}  Qb7 {[%clk 0:01:30]} 28. f5 {[%clk 0:01:58]}  Ne5 {[%clk 0:01:19]} 29. Rc3 {[%clk 0:01:54]}  Bf6 {[%clk 0:01:15]} 30. fxe6 {[%clk 0:01:50]}  fxe6 {[%clk 0:01:09]} 31. Rce3 {[%clk 0:01:44]}  Kf7 {[%clk 0:00:52]} 32. Qf4 {[%clk 0:01:32]}  Rh5 {[%clk 0:00:47]} 33. Bb2 {[%clk 0:01:28]}  Rf5 {[%clk 0:00:42]} 34. Bxe5 {[%clk 0:01:17]}  Rxf4 {[%clk 0:00:35]} 35. Bxf4 {[%clk 0:01:16]}  Bd4 {[%clk 0:00:35]} 36. Rf1 {[%clk 0:01:13]}  Kg8 {[%clk 0:00:30]} 37. Nh4 {[%clk 0:01:06]}  e5 {[%clk 0:00:26]} 38. Bg5 {[%clk 0:01:04]}  Bxe3+ {[%clk 0:00:24]} 39. Bxe3 {[%clk 0:01:05]}  Rf8 {[%clk 0:00:24]} 40. Nf5 {[%clk 0:01:03]}  Rf7 {[%clk 0:00:17]} 41. Bg5 {[%clk 0:01:02]}  Qe4 {[%clk 0:00:10]} 42. Ne7+ {[%clk 0:00:35]}  Rxe7 {[%clk 0:00:11]} 43. Bxe7 {[%clk 0:00:35]}  Qxc4 {[%clk 0:00:11]} 44. Rf8+ {[%clk 0:00:24]}  Kh7 {[%clk 0:00:11]} 45. Rf2 {[%clk 0:00:24]}  Qxb4 {[%clk 0:00:09]} 46. Re2 {[%clk 0:00:21]}  a5 {[%clk 0:00:05]} 47. Kg2 {[%clk 0:00:18]}  Qd4 {[%clk 0:00:05]} 48. Bg5 {[%clk 0:00:17]}  b5 {[%clk 0:00:05]} 49. Rd2 {[%clk 0:00:17]}  Qe4+ {[%clk 0:00:05]} 50. Kf2 {[%clk 0:00:17]}  d5 {[%clk 0:00:05]} 51. Bh4 {[%clk 0:00:13]}  d4 {[%clk 0:00:04]} 52. Re2 {[%clk 0:00:14]}  Qf5+ {[%clk 0:00:03]} 53. Kg2 {[%clk 0:00:14]}  e4 {[%clk 0:00:02]} 54. Rf2 {[%clk 0:00:15]}  Qd5 {[%clk 0:00:01]} 55. Kh3 {[%clk 0:00:14]}  e3 {[%clk 0:00:02]} 56. Rh2 {[%clk 0:00:14]}  Qe6+ {[%clk 0:00:02]} 57. Kg2 {[%clk 0:00:14]}  Kg8 {[%clk 0:00:03]} 58. Rh1 {[%clk 0:00:13]}  e2 {[%clk 0:00:03]} 59. Kf2 {[%clk 0:00:13]}  Qe4 {[%clk 0:00:03]} 60. Re1 {[%clk 0:00:11]}  Qe3+ {[%clk 0:00:04]} 61. Kg2 {[%clk 0:00:11]}  d3 {[%clk 0:00:05]} 62. Rc1 {[%clk 0:00:10]}  Qxc1 {[%clk 0:00:05]} 0-1


[Site "https://www.chess.com"]

[Event "Titled Tuesday Blitz January 03 Late 2023"]
[White "Martinez Ramirez, Lennis"]
[Black "Stachanczyk, Jacek"]
[WhiteFideId "3509079"]
[BlackFideId "1116657"]
[WhiteElo "2426"]
[BlackElo "2147"]
[Result "0-1"]
[Round "06"]
[TimeControl "180+2"]
[Date "2023.01.03"]
[WhiteClock "0:00:15"]
[BlackClock "0:00:20"]

1. b4 {[%clk 0:02:59]}  e5 {[%clk 0:02:52]} 2. Bb2 {[%clk 0:02:56]}  Bxb4 {[%clk 0:02:50]} 3. Bxe5 {[%clk 0:02:56]}  Nf6 {[%clk 0:02:50]} 4. Bb2 {[%clk 0:02:56]}  d5 {[%clk 0:02:47]} 5. Nf3 {[%clk 0:02:56]}  O-O {[%clk 0:02:47]} 6. e3 {[%clk 0:02:57]}  c5 {[%clk 0:02:45]} 7. c4 {[%clk 0:02:57]}  Re8 {[%clk 0:02:31]} 8. cxd5 {[%clk 0:02:57]}  Nxd5 {[%clk 0:02:29]} 9. a3 {[%clk 0:02:55]}  Ba5 {[%clk 0:02:28]} 10. Be2 {[%clk 0:02:55]}  Nc6 {[%clk 0:02:27]} 11. O-O {[%clk 0:02:55]}  Bc7 {[%clk 0:02:27]} 12. Qc2 {[%clk 0:02:52]}  b6 {[%clk 0:02:16]} 13. d4 {[%clk 0:02:52]}  Qe7 {[%clk 0:01:53]} 14. dxc5 {[%clk 0:02:49]}  bxc5 {[%clk 0:01:54]} 15. Nbd2 {[%clk 0:02:44]}  Rb8 {[%clk 0:01:52]} 16. Rae1 {[%clk 0:02:33]}  Bg4 {[%clk 0:01:41]} 17. Ba1 {[%clk 0:02:32]}  Bh5 {[%clk 0:01:24]} 18. Bd3 {[%clk 0:02:32]}  Bg6 {[%clk 0:01:21]} 19. Bxg6 {[%clk 0:02:32]}  hxg6 {[%clk 0:01:22]} 20. Nb3 {[%clk 0:02:31]}  Bd6 {[%clk 0:01:16]} 21. Rb1 {[%clk 0:02:28]}  Nf6 {[%clk 0:01:05]} 22. Nbd2 {[%clk 0:02:20]}  Rec8 {[%clk 0:00:58]} 23. Rxb8 {[%clk 0:02:14]}  Bxb8 {[%clk 0:00:58]} 24. Rb1 {[%clk 0:02:12]}  Be5 {[%clk 0:00:52]} 25. Nxe5 {[%clk 0:02:09]}  Nxe5 {[%clk 0:00:53]} 26. Nc4 {[%clk 0:02:05]}  Nxc4 {[%clk 0:00:52]} 27. Qxc4 {[%clk 0:02:06]}  Qe4 {[%clk 0:00:37]} 28. Qc1 {[%clk 0:01:45]}  c4 {[%clk 0:00:35]} 29. Bd4 {[%clk 0:01:43]}  c3 {[%clk 0:00:32]} 30. Rb3 {[%clk 0:01:41]}  c2 {[%clk 0:00:31]} 31. f3 {[%clk 0:01:41]}  Qd5 {[%clk 0:00:30]} 32. Rb2 {[%clk 0:01:37]}  Qc4 {[%clk 0:00:29]} 33. Kf2 {[%clk 0:01:34]}  Nd5 {[%clk 0:00:29]} 34. Bxa7 {[%clk 0:01:31]}  Qd3 {[%clk 0:00:26]} 35. Ra2 {[%clk 0:01:23]}  Qd1 {[%clk 0:00:25]} 36. Ra1 {[%clk 0:01:23]}  Nc3 {[%clk 0:00:25]} 37. Bd4 {[%clk 0:01:10]}  Qe2+ {[%clk 0:00:24]} 38. Kg3 {[%clk 0:01:09]}  Nd5 {[%clk 0:00:24]} 39. a4 {[%clk 0:01:00]}  Ne7 {[%clk 0:00:24]} 40. a5 {[%clk 0:00:57]}  Nf5+ {[%clk 0:00:24]} 41. Kh3 {[%clk 0:00:58]}  Qf2 {[%clk 0:00:20]} 42. g3 {[%clk 0:00:31]}  Qxf3 {[%clk 0:00:21]} 43. Bb2 {[%clk 0:00:15]}  g5 {[%clk 0:00:20]} 0-1


[Site "https://www.chess.com"]

[Event "Titled Tuesday Blitz January 03 Late 2023"]
[White "Donskov, Anatoly"]
[Black "Poliakova, Varvara"]
[WhiteFideId "24143413"]
[BlackFideId "13518313"]
[WhiteElo "2279"]
[BlackElo "2010"]
[Result "0-1"]
[Round "06"]
[TimeControl "180+2"]
[Date "2023.01.03"]
[WhiteClock "0:00:51"]
[BlackClock "0:00:37"]

1. e4 {[%clk 0:03:00]}  e5 {[%clk 0:02:56]} 2. Nf3 {[%clk 0:03:01]}  Nc6 {[%clk 0:02:55]} 3. Bb5 {[%clk 0:03:01]}  a6 {[%clk 0:02:54]} 4. Ba4 {[%clk 0:03:01]}  Nf6 {[%clk 0:02:53]} 5. O-O {[%clk 0:03:02]}  Be7 {[%clk 0:02:53]} 6. Re1 {[%clk 0:03:02]}  b5 {[%clk 0:02:54]} 7. Bb3 {[%clk 0:03:02]}  d6 {[%clk 0:02:54]} 8. d3 {[%clk 0:03:00]}  O-O {[%clk 0:02:55]} 9. a4 {[%clk 0:03:00]}  Na5 {[%clk 0:02:54]} 10. Ba2 {[%clk 0:03:00]}  b4 {[%clk 0:02:53]} 11. Nbd2 {[%clk 0:03:00]}  c5 {[%clk 0:02:52]} 12. c3 {[%clk 0:03:01]}  Nc6 {[%clk 0:02:49]} 13. Nf1 {[%clk 0:03:00]}  Be6 {[%clk 0:02:49]} 14. Bxe6 {[%clk 0:02:55]}  fxe6 {[%clk 0:02:50]} 15. d4 {[%clk 0:02:55]}  cxd4 {[%clk 0:02:45]} 16. cxd4 {[%clk 0:02:56]}  exd4 {[%clk 0:02:31]} 17. Nxd4 {[%clk 0:02:56]}  Nxd4 {[%clk 0:02:27]} 18. Qxd4 {[%clk 0:02:57]}  Ng4 {[%clk 0:02:15]} 19. Be3 {[%clk 0:02:46]}  Bf6 {[%clk 0:02:08]} 20. Qxb4 {[%clk 0:02:43]}  Rb8 {[%clk 0:02:09]} 21. Qc4 {[%clk 0:02:42]}  Qe7 {[%clk 0:01:53]} 22. Re2 {[%clk 0:02:39]}  Bxb2 {[%clk 0:01:45]} 23. Rb1 {[%clk 0:02:37]}  Be5 {[%clk 0:01:45]} 24. Rxb8 {[%clk 0:02:18]}  Rxb8 {[%clk 0:01:46]} 25. Qxa6 {[%clk 0:02:19]}  Rb1 {[%clk 0:01:45]} 26. g3 {[%clk 0:02:04]}  Qf6 {[%clk 0:01:38]} 27. Kg2 {[%clk 0:01:41]}  Bd4 {[%clk 0:01:04]} 28. Qa8+ {[%clk 0:01:11]}  Kf7 {[%clk 0:01:03]} 29. Bxd4 {[%clk 0:01:12]}  Qxd4 {[%clk 0:01:00]} 30. Rc2 {[%clk 0:01:12]}  Qb6 {[%clk 0:00:49]} 31. a5 {[%clk 0:01:01]}  Qb5 {[%clk 0:00:37]} 32. Rc7+ {[%clk 0:00:51]}  Kg6 {[%clk 0:00:37]} 33. Qe8+ {[%clk 0:00:51]}  Qxe8 {[%clk 0:00:37]} 0-1


[Site "https://www.chess.com"]

[Event "Titled Tuesday Blitz January 03 Late 2023"]
[White "Blanco Ronquillo, Humberto L."]
[Black "Gasparyan, David"]
[WhiteFideId "3504239"]
[BlackFideId "13311980"]
[WhiteElo "2442"]
[BlackElo "2142"]
[Result "1-0"]
[Round "06"]
[TimeControl "180+2"]
[Date "2023.01.03"]
[WhiteClock "0:01:07"]
[BlackClock "0:00:01"]

1. e4 {[%clk 0:03:00]}  c5 {[%clk 0:02:56]} 2. Nf3 {[%clk 0:03:00]}  Nc6 {[%clk 0:02:57]} 3. Bb5 {[%clk 0:03:00]}  Qc7 {[%clk 0:02:53]} 4. O-O {[%clk 0:02:59]}  g6 {[%clk 0:02:54]} 5. Re1 {[%clk 0:02:59]}  Bg7 {[%clk 0:02:54]} 6. c3 {[%clk 0:02:59]}  Nf6 {[%clk 0:02:52]} 7. d4 {[%clk 0:02:59]}  cxd4 {[%clk 0:02:49]} 8. cxd4 {[%clk 0:03:00]}  O-O {[%clk 0:02:48]} 9. Nc3 {[%clk 0:02:59]}  a6 {[%clk 0:02:43]} 10. Bf1 {[%clk 0:02:59]}  d6 {[%clk 0:02:37]} 11. Bg5 {[%clk 0:02:57]}  Qa5 {[%clk 0:02:29]} 12. a3 {[%clk 0:02:54]}  Bg4 {[%clk 0:02:27]} 13. Be3 {[%clk 0:02:48]}  Rac8 {[%clk 0:02:21]} 14. h3 {[%clk 0:02:48]}  Bxf3 {[%clk 0:02:17]} 15. Qxf3 {[%clk 0:02:49]}  b5 {[%clk 0:02:16]} 16. g4 {[%clk 0:02:24]}  e5 {[%clk 0:02:07]} 17. dxe5 {[%clk 0:02:14]}  Nxe5 {[%clk 0:02:04]} 18. Qe2 {[%clk 0:02:12]}  Nc4 {[%clk 0:02:01]} 19. Bd4 {[%clk 0:02:12]}  Rfe8 {[%clk 0:01:57]} 20. Qf3 {[%clk 0:01:55]}  Nd2 {[%clk 0:01:51]} 21. Qf4 {[%clk 0:01:49]}  Nb3 {[%clk 0:01:18]} 22. Bxf6 {[%clk 0:01:46]}  Nxa1 {[%clk 0:01:18]} 23. Rxa1 {[%clk 0:01:43]}  b4 {[%clk 0:01:16]} 24. Nd5 {[%clk 0:01:37]}  Rc2 {[%clk 0:00:53]} 25. Bxg7 {[%clk 0:01:36]}  Kxg7 {[%clk 0:00:53]} 26. Qf6+ {[%clk 0:01:35]}  Kg8 {[%clk 0:00:53]} 27. Nxb4 {[%clk 0:01:31]}  Qc5 {[%clk 0:00:44]} 28. Nxc2 {[%clk 0:01:30]}  Qxc2 {[%clk 0:00:43]} 29. Re1 {[%clk 0:01:24]}  Re6 {[%clk 0:00:42]} 30. Qd4 {[%clk 0:01:23]}  d5 {[%clk 0:00:38]} 31. e5 {[%clk 0:01:22]}  h5 {[%clk 0:00:28]} 32. Bg2 {[%clk 0:01:20]}  hxg4 {[%clk 0:00:20]} 33. hxg4 {[%clk 0:01:21]}  Rc6 {[%clk 0:00:12]} 34. Bxd5 {[%clk 0:01:20]}  Rc7 {[%clk 0:00:12]} 35. e6 {[%clk 0:01:20]}  Kf8 {[%clk 0:00:09]} 36. exf7 {[%clk 0:01:18]}  Qe2 {[%clk 0:00:01]} 37. Rxe2 {[%clk 0:01:14]}  Rc1+ {[%clk 0:00:01]} 38. Kg2 {[%clk 0:01:14]}  g5 {[%clk 0:00:01]} 39. Qh8# {[%clk 0:01:07]} 1-0


[Site "https://www.chess.com"]

[Event "Titled Tuesday Blitz January 03 Late 2023"]
[White "Egorov, Evgeny"]
[Black "benny_aizenberg"]
[WhiteFideId "13700421"]
[WhiteElo "2294"]
[BlackElo "2507"]
[Result "0-1"]
[Round "06"]
[TimeControl "180+2"]
[Date "2023.01.03"]
[WhiteClock "0:00:02"]
[BlackClock "0:00:06"]

1. e4 {[%clk 0:03:00]}  c5 {[%clk 0:02:58]} 2. Nc3 {[%clk 0:02:59]}  Nc6 {[%clk 0:02:58]} 3. Nge2 {[%clk 0:02:59]}  g6 {[%clk 0:02:57]} 4. d4 {[%clk 0:02:59]}  cxd4 {[%clk 0:02:57]} 5. Nxd4 {[%clk 0:03:00]}  Bg7 {[%clk 0:02:58]} 6. Nb3 {[%clk 0:03:00]}  Nf6 {[%clk 0:02:57]} 7. Be2 {[%clk 0:03:00]}  O-O {[%clk 0:02:57]} 8. O-O {[%clk 0:03:00]}  d6 {[%clk 0:02:57]} 9. Re1 {[%clk 0:03:00]}  Be6 {[%clk 0:02:57]} 10. Bf1 {[%clk 0:02:57]}  a5 {[%clk 0:02:56]} 11. a4 {[%clk 0:02:56]}  Rc8 {[%clk 0:02:56]} 12. Nd5 {[%clk 0:02:55]}  Nb4 {[%clk 0:02:56]} 13. c4 {[%clk 0:02:50]}  Nfxd5 {[%clk 0:02:47]} 14. exd5 {[%clk 0:02:49]}  Bf5 {[%clk 0:02:47]} 15. Bg5 {[%clk 0:02:43]}  Re8 {[%clk 0:02:39]} 16. Nd4 {[%clk 0:02:09]}  Bxd4 {[%clk 0:02:37]} 17. Qxd4 {[%clk 0:02:10]}  Nc2 {[%clk 0:02:38]} 18. Qc3 {[%clk 0:02:10]}  Nxa1 {[%clk 0:02:37]} 19. Rxa1 {[%clk 0:02:05]}  Qb6 {[%clk 0:02:26]} 20. Re1 {[%clk 0:01:58]}  f6 {[%clk 0:02:25]} 21. Be3 {[%clk 0:01:56]}  Qb4 {[%clk 0:02:24]} 22. Qxb4 {[%clk 0:01:56]}  axb4 {[%clk 0:02:25]} 23. Bd2 {[%clk 0:01:44]}  b3 {[%clk 0:02:20]} 24. Bc3 {[%clk 0:01:37]}  Kf7 {[%clk 0:02:17]} 25. a5 {[%clk 0:01:36]}  Rc5 {[%clk 0:02:10]} 26. f3 {[%clk 0:01:35]}  Ra8 {[%clk 0:02:06]} 27. Ra1 {[%clk 0:01:31]}  b6 {[%clk 0:01:55]} 28. a6 {[%clk 0:01:21]}  Rc7 {[%clk 0:01:51]} 29. Bd4 {[%clk 0:01:19]}  Rca7 {[%clk 0:01:51]} 30. Ra3 {[%clk 0:01:09]}  Bc2 {[%clk 0:01:50]} 31. Ra4 {[%clk 0:01:06]}  Rxa6 {[%clk 0:01:49]} 32. Rb4 {[%clk 0:01:06]}  Ra1 {[%clk 0:01:49]} 33. Kf2 {[%clk 0:01:06]}  Rd1 {[%clk 0:01:48]} 34. Bc3 {[%clk 0:01:00]}  Ra2 {[%clk 0:01:24]} 35. Rxb6 {[%clk 0:00:55]}  Ke8 {[%clk 0:01:14]} 36. Rb8+ {[%clk 0:00:53]}  Kd7 {[%clk 0:01:14]} 37. Rb7+ {[%clk 0:00:53]}  Kd8 {[%clk 0:01:14]} 38. Be2 {[%clk 0:00:52]}  Rc1 {[%clk 0:01:13]} 39. Ke3 {[%clk 0:00:48]}  Rca1 {[%clk 0:00:59]} 40. h4 {[%clk 0:00:46]}  Ra7 {[%clk 0:00:59]} 41. Rb5 {[%clk 0:00:45]}  Kc7 {[%clk 0:00:56]} 42. h5 {[%clk 0:00:44]}  gxh5 {[%clk 0:00:55]} 43. c5 {[%clk 0:00:39]}  dxc5 {[%clk 0:00:52]} 44. Rxc5+ {[%clk 0:00:39]}  Kd6 {[%clk 0:00:53]} 45. Bb4 {[%clk 0:00:39]}  R1a4 {[%clk 0:00:39]} 46. Rb5+ {[%clk 0:00:24]}  Kd7 {[%clk 0:00:37]} 47. f4 {[%clk 0:00:21]}  h4 {[%clk 0:00:32]} 48. Bg4+ {[%clk 0:00:19]}  f5 {[%clk 0:00:32]} 49. Bf3 {[%clk 0:00:18]}  Rc7 {[%clk 0:00:30]} 50. Rb6 {[%clk 0:00:17]}  Rc4 {[%clk 0:00:29]} 51. Ba3 {[%clk 0:00:16]}  Rxf4 {[%clk 0:00:25]} 52. Rb7+ {[%clk 0:00:16]}  Kc8 {[%clk 0:00:25]} 53. Rxe7 {[%clk 0:00:15]}  Rfd4 {[%clk 0:00:23]} 54. Be2 {[%clk 0:00:11]}  Rxd5 {[%clk 0:00:21]} 55. Rxh7 {[%clk 0:00:10]}  Rxa3 {[%clk 0:00:20]} 56. Bc4 {[%clk 0:00:09]}  Rd6 {[%clk 0:00:17]} 57. bxa3 {[%clk 0:00:05]}  b2 {[%clk 0:00:17]} 58. Ba2 {[%clk 0:00:06]}  b1=Q {[%clk 0:00:15]} 59. Bxb1 {[%clk 0:00:06]}  Bxb1 {[%clk 0:00:15]} 60. Rxh4 {[%clk 0:00:07]}  Rd3+ {[%clk 0:00:13]} 61. Kf4 {[%clk 0:00:07]}  Rxa3 {[%clk 0:00:13]} 62. Kg5 {[%clk 0:00:06]}  Rg3+ {[%clk 0:00:12]} 63. Kf4 {[%clk 0:00:05]}  Rxg2 {[%clk 0:00:13]} 64. Rh7 {[%clk 0:00:06]}  Rg4+ {[%clk 0:00:11]} 65. Ke5 {[%clk 0:00:06]}  Re4+ {[%clk 0:00:11]} 66. Kd5 {[%clk 0:00:03]}  f4 {[%clk 0:00:10]} 67. Rf7 {[%clk 0:00:03]}  Kd8 {[%clk 0:00:06]} 68. Kd6 {[%clk 0:00:03]}  Ke8 {[%clk 0:00:06]} 69. Rf6 {[%clk 0:00:03]}  Ba2 {[%clk 0:00:04]} 70. Kc5 {[%clk 0:00:03]}  Be6 {[%clk 0:00:04]} 71. Kd6 {[%clk 0:00:03]}  Bg4 {[%clk 0:00:03]} 72. Rg6 {[%clk 0:00:02]}  Re6+ {[%clk 0:00:03]} 73. Rxe6+ {[%clk 0:00:02]}  Bxe6 {[%clk 0:00:03]} 74. Ke5 {[%clk 0:00:03]}  f3 {[%clk 0:00:04]} 75. Kf4 {[%clk 0:00:02]}  f2 {[%clk 0:00:05]} 76. Kg5 {[%clk 0:00:02]}  f1=Q {[%clk 0:00:06]} 0-1


[Site "https://www.chess.com"]

[Event "Titled Tuesday Blitz January 03 Late 2023"]
[White "Brilej, Jaka"]
[Black "Lorenzo De La Riva, Lazaro"]
[WhiteFideId "14618818"]
[BlackFideId "2268809"]
[WhiteElo "2321"]
[BlackElo "2404"]
[Result "0-1"]
[Round "06"]
[TimeControl "180+2"]
[Date "2023.01.03"]
[WhiteClock "0:00:05"]
[BlackClock "0:00:11"]

1. d4 {[%clk 0:02:51]}  e6 {[%clk 0:02:57]} 2. e4 {[%clk 0:02:45]}  d5 {[%clk 0:02:56]} 3. e5 {[%clk 0:02:45]}  c5 {[%clk 0:02:55]} 4. c3 {[%clk 0:02:45]}  Nc6 {[%clk 0:02:55]} 5. Nf3 {[%clk 0:02:45]}  Bd7 {[%clk 0:02:55]} 6. Be2 {[%clk 0:02:41]}  Nge7 {[%clk 0:02:55]} 7. O-O {[%clk 0:02:38]}  cxd4 {[%clk 0:02:54]} 8. cxd4 {[%clk 0:02:38]}  Ng6 {[%clk 0:02:50]} 9. Nc3 {[%clk 0:02:37]}  Be7 {[%clk 0:02:44]} 10. Be3 {[%clk 0:02:37]}  O-O {[%clk 0:02:43]} 11. g3 {[%clk 0:02:31]}  Rc8 {[%clk 0:02:39]} 12. h4 {[%clk 0:02:30]}  f6 {[%clk 0:02:35]} 13. h5 {[%clk 0:02:29]}  Nh8 {[%clk 0:02:35]} 14. exf6 {[%clk 0:02:23]}  Bxf6 {[%clk 0:02:29]} 15. Bd3 {[%clk 0:02:22]}  Qe8 {[%clk 0:01:57]} 16. h6 {[%clk 0:02:16]}  g6 {[%clk 0:01:54]} 17. Nb5 {[%clk 0:02:12]}  Nf7 {[%clk 0:01:47]} 18. Nh2 {[%clk 0:01:54]}  a6 {[%clk 0:01:45]} 19. Ng4 {[%clk 0:01:51]}  Be7 {[%clk 0:01:33]} 20. Nc3 {[%clk 0:01:48]}  Nd6 {[%clk 0:01:33]} 21. Bf4 {[%clk 0:01:28]}  Nf5 {[%clk 0:01:28]} 22. Bxf5 {[%clk 0:01:26]}  Rxf5 {[%clk 0:01:26]} 23. Ne3 {[%clk 0:01:22]}  Rxf4 {[%clk 0:01:26]} 24. gxf4 {[%clk 0:01:19]}  Qf7 {[%clk 0:01:25]} 25. Ne2 {[%clk 0:01:12]}  Bd6 {[%clk 0:01:17]} 26. Ng2 {[%clk 0:01:07]}  Qf8 {[%clk 0:01:15]} 27. f5 {[%clk 0:01:00]}  Qxf5 {[%clk 0:01:05]} 28. Ng3 {[%clk 0:00:57]}  Qh3 {[%clk 0:01:02]} 29. Qd2 {[%clk 0:00:50]}  Rf8 {[%clk 0:01:01]} 30. Rae1 {[%clk 0:00:45]}  Bb4 {[%clk 0:00:52]} 31. Qe3 {[%clk 0:00:33]}  Bxe1 {[%clk 0:00:48]} 32. Rxe1 {[%clk 0:00:34]}  Qg4 {[%clk 0:00:41]} 33. Ne2 {[%clk 0:00:26]}  Rf3 {[%clk 0:00:39]} 34. Qd2 {[%clk 0:00:25]}  g5 {[%clk 0:00:21]} 35. Rd1 {[%clk 0:00:18]}  Be8 {[%clk 0:00:20]} 36. Ng3 {[%clk 0:00:18]}  Bg6 {[%clk 0:00:19]} 37. Qe1 {[%clk 0:00:17]}  Be4 {[%clk 0:00:17]} 38. Nxe4 {[%clk 0:00:15]}  dxe4 {[%clk 0:00:18]} 39. d5 {[%clk 0:00:16]}  Ne5 {[%clk 0:00:18]} 40. dxe6 {[%clk 0:00:15]}  Rd3 {[%clk 0:00:18]} 41. Rxd3 {[%clk 0:00:14]}  Nxd3 {[%clk 0:00:18]} 42. Qc3 {[%clk 0:00:13]}  Qd1+ {[%clk 0:00:14]} 43. Kh2 {[%clk 0:00:13]}  Qh5+ {[%clk 0:00:15]} 44. Kg1 {[%clk 0:00:14]}  Qxh6 {[%clk 0:00:15]} 45. e7 {[%clk 0:00:14]}  Kf7 {[%clk 0:00:14]} 46. Qc4+ {[%clk 0:00:10]}  Kxe7 {[%clk 0:00:14]} 47. Qxe4+ {[%clk 0:00:11]}  Kf6 {[%clk 0:00:13]} 48. Qxd3 {[%clk 0:00:11]}  Qf8 {[%clk 0:00:11]} 49. Qf3+ {[%clk 0:00:11]}  Kg7 {[%clk 0:00:11]} 50. Qxf8+ {[%clk 0:00:12]}  Kxf8 {[%clk 0:00:12]} 51. Ne3 {[%clk 0:00:12]}  Kg7 {[%clk 0:00:12]} 52. Kg2 {[%clk 0:00:13]}  Kf6 {[%clk 0:00:13]} 53. Kg3 {[%clk 0:00:13]}  h5 {[%clk 0:00:13]} 54. Kf3 {[%clk 0:00:12]}  Ke5 {[%clk 0:00:14]} 55. Nc2 {[%clk 0:00:12]}  a5 {[%clk 0:00:12]} 56. Ke3 {[%clk 0:00:11]}  b5 {[%clk 0:00:12]} 57. Nd4 {[%clk 0:00:11]}  b4 {[%clk 0:00:12]} 58. Nc6+ {[%clk 0:00:12]}  Kf5 {[%clk 0:00:12]} 59. Nxa5 {[%clk 0:00:12]}  Kg4 {[%clk 0:00:12]} 60. Nc6 {[%clk 0:00:12]}  h4 {[%clk 0:00:13]} 61. Ne5+ {[%clk 0:00:12]}  Kh3 {[%clk 0:00:12]} 62. Nf3 {[%clk 0:00:12]}  g4 {[%clk 0:00:13]} 63. Ng5+ {[%clk 0:00:12]}  Kg2 {[%clk 0:00:13]} 64. f3 {[%clk 0:00:12]}  h3 {[%clk 0:00:13]} 65. Ne4 {[%clk 0:00:07]}  h2 {[%clk 0:00:12]} 66. Nf2 {[%clk 0:00:06]}  g3 {[%clk 0:00:12]} 67. Ne4 {[%clk 0:00:03]}  h1=Q {[%clk 0:00:13]} 68. a4 {[%clk 0:00:03]}  Qe1+ {[%clk 0:00:12]} 69. Kf4 {[%clk 0:00:03]}  Qc1+ {[%clk 0:00:11]} 70. Kg4 {[%clk 0:00:03]}  Qxb2 {[%clk 0:00:11]} 71. Nxg3 {[%clk 0:00:04]}  Qg7+ {[%clk 0:00:10]} 72. Kf4 {[%clk 0:00:04]}  Qxg3+ {[%clk 0:00:11]} 73. Ke4 {[%clk 0:00:05]}  Qc7 {[%clk 0:00:11]} 0-1


[Site "https://www.chess.com"]